bitfinex/quotes_ETHUSD_20250929
["timestamp","ask_amount","ask_price","bid_price","bid_amount"]
[1759162055734,5.749,4171.5,4171.4,2.39727362]
[1759162055938,5.749,4171.5,4171.4,3.10397362]
[1759162056297,5.749,4171.5,4171.2,0.002]
[1759162056529,5.749,4171.5,4171.3,2.39733416]
[1759162056530,0.1192,4171.4,4171.3,2.39733416]
[1759162058793,10.0972,4171.4,4171.3,2.39733416]
[1759162059922,10.0972,4171.4,4171.2,2.39938975]
[1759162059923,3.0,4171.3,4171.2,2.39938975]
[1759162060140,5.749,4171.3,4171.2,2.39938975]
[1759162060821,12.727,4171.3,4171.2,2.39938975]
[1759162061133,12.727,4171.3,4171.2,0.002]
[1759162061639,6.976,4171.2,4171.0,2.39749214]
[1759162061940,6.976,4171.2,4170.8,0.002]
[1759162061941,0.1192,4171.0,4170.8,0.002]
[1759162062231,12.726,4170.9,4170.8,2.62972155]
[1759162062927,12.726,4170.9,4170.8,0.002]
[1759162062928,13.518,4170.9,4170.8,0.002]
[1759162065327,12.726,4170.9,4170.8,2.39962155]
[1759162065532,12.726,4170.9,4170.8,3.09722155]
[1759162067607,12.726,4170.9,4170.8,0.002]
[1759162068131,12.726,4170.9,4170.8,2.39962155]
[1759162068646,13.518,4170.9,4170.8,0.002]
[1759162070431,3.1192,4170.8,4170.3,0.2321]
[1759162070631,3.1192,4170.8,4170.7,2.39767904]
[1759162070951,5.75,4170.8,4170.7,2.39767904]
[1759162071179,0.792,4170.5,4170.3,0.002]
[1759162071321,6.542,4170.4,4170.3,0.002]
[1759162071519,6.7813,4170.4,4170.3,0.002]
[1759162073141,8.6586,4170.4,4170.3,0.002]
[1759162073756,8.2223,4170.4,4170.3,0.002]
[1759162074559,8.6586,4170.4,4170.3,0.002]
[1759162075422,8.2223,4170.4,4170.3,0.002]
[1759162075830,7.983,4170.4,4170.3,0.002]
[1759162076055,5.75,4170.4,4170.3,0.002]
[1759162078141,8.2223,4170.4,4170.3,0.002]
[1759162078450,7.983,4170.4,4170.3,0.002]
[1759162080253,3.0,4170.4,4170.3,0.002]
[1759162080449,5.75,4170.4,4170.3,3.09750902]
[1759162080823,5.75,4170.4,4170.3,0.6996]
[1759162081650,5.75,4170.4,4170.3,3.09750902]
[1759162081855,6.542,4170.4,4170.3,0.002]
[1759162082163,6.7813,4170.4,4170.3,0.002]
[1759162082541,6.542,4170.4,4170.3,0.002]
[1759162083257,7.983,4170.4,4170.3,0.002]
[1759162083852,8.2223,4170.4,4170.3,0.002]
[1759162084724,8.6586,4170.4,4170.3,0.002]
[1759162085032,7.983,4170.4,4170.3,0.002]
[1759162085449,10.38085152,4170.4,4170.3,0.002]
[1759162085650,8.6586,4170.4,4170.3,0.002]
[1759162085854,8.2223,4170.4,4170.3,0.002]
[1759162086655,7.983,4170.4,4170.3,0.002]
[1759162090532,7.983,4170.4,4170.3,0.2486]
[1759162090533,7.191,4170.4,4170.3,0.2486]
[1759162090734,7.191,4170.4,4170.3,0.6817]
[1759162090937,7.191,4170.4,4170.3,0.2486]
[1759162091162,7.191,4170.4,4170.3,0.002]
[1759162091364,11.76737845,4170.4,4170.3,0.002]
[1759162094966,12.55937845,4170.4,4170.3,0.002]
[1759162095298,12.79687845,4170.4,4170.3,0.002]
[1759162095668,15.65652997,4170.4,4170.3,0.002]
[1759162095968,23.82605497,4170.4,4170.3,0.002]
[1759162096158,19.67985097,4170.4,4170.3,0.002]
[1759162096359,17.70091797,4170.4,4170.3,0.002]
[1759162096808,15.65652997,4170.4,4170.3,0.002]
[1759162096964,27.94754997,4170.4,4170.3,0.002]
[1759162097494,26.91903897,4170.4,4170.3,0.002]
[1759162097995,27.70181797,4170.4,4170.3,0.002]
[1759162098500,34.6927758,4170.4,4170.3,0.002]
[1759162099000,39.15407121,4170.4,4170.3,0.002]
[1759162100092,38.7778558,4170.4,4170.3,0.002]
[1759162102219,26.6835928,4170.4,4170.3,0.002]
[1759162102787,27.1453928,4170.4,4170.3,0.002]
[1759162103115,38.89776141,4170.4,4170.3,0.002]
[1759162104016,44.60374041,4170.4,4170.3,0.002]
[1759162105010,45.21565941,4170.4,4170.3,0.002]
[1759162105817,13.10331623,4170.4,4170.3,0.002]
[1759162105994,45.35301541,4170.4,4170.3,0.002]
[1759162106195,46.14501541,4170.4,4170.3,0.002]
[1759162107228,45.68321541,4170.4,4170.3,0.002]
[1759162107958,29.55284741,4170.4,4170.3,0.002]
[1759162108231,46.14501541,4170.4,4170.3,0.002]
[1759162108730,10.18558023,4170.4,4170.3,0.002]
[1759162108932,25.46201158,4170.4,4170.3,0.002]
[1759162109135,27.5907468,4170.4,4170.3,0.002]
[1759162109431,26.3987468,4170.4,4170.3,0.002]
[1759162109636,21.9481878,4170.4,4170.3,0.002]
[1759162109820,19.55033628,4170.4,4170.3,0.2285]
[1759162110024,19.55033628,4170.4,4170.3,0.002]
[1759162110335,24.2760718,4170.4,4170.3,0.6773]
[1759162110704,24.2760718,4170.4,4170.3,0.002]
[1759162110948,38.38763163,4170.4,4170.3,0.002]
[1759162111137,36.17129163,4170.4,4170.3,0.002]
[1759162111635,19.55033628,4170.4,4170.3,0.6773]
[1759162111834,24.0340718,4170.4,4170.3,0.6773]
[1759162112143,23.30054105,4170.4,4170.3,0.2285]
[1759162112733,25.69839257,4170.4,4170.3,0.2285]
[1759162112930,29.80665457,4170.4,4170.3,0.2285]
[1759162113322,36.7976124,4170.4,4170.3,0.002]
[1759162114037,41.5503704,4170.4,4170.3,0.002]
[1759162114600,41.7878704,4170.4,4170.3,0.002]
[1759162115036,42.6496774,4170.4,4170.3,0.002]
[1759162115243,42.6496774,4170.4,4160.9,21.234]
[1759162115244,4.11957845,4169.4,4168.5,2.39889553]
[1759162115445,4.11957845,4169.4,4166.5,9.99095783]
[1759162115446,3.0,4169.3,4169.0,2.39862646]
[1759162115651,3.0,4169.3,4167.4,2.39956391]
[1759162115652,3.0,4169.1,4168.4,2.39900201]
[1759162115946,6.86957845,4169.0,4168.9,2.39871428]
[1759162116307,6.86957845,4169.0,4168.9,2.62521428]
[1759162117318,6.86957845,4169.0,4168.9,3.07401428]
[1759162121525,4.11957845,4169.0,4168.9,3.07401428]
[1759162122484,4.11957845,4169.0,4168.9,10.06497211]
[1759162122667,4.11957845,4169.0,4168.9,11.31134826]
[1759162123039,2.75,4169.5,4169.4,2.39842663]
[1759162123246,2.75,4169.6,4169.4,3.11292663]
[1759162123471,1.441,4170.4,4169.1,0.02398599]
[1759162123472,1.441,4170.4,4170.2,2.39794707]
[1759162123677,1.442,4170.8,4170.5,2.39777913]
[1759162123988,2.75,4170.7,4170.6,3.11223653]
[1759162126685,2.75,4170.7,4170.6,0.7145]
[1759162126992,2.75,4170.7,4170.6,3.11223653]
[1759162127567,3.0,4170.6,4170.1,0.2458]
[1759162127791,9.74095783,4170.7,4170.1,0.2458]
[1759162127792,9.99095783,4170.4,4170.1,0.2458]
[1759162128088,3.0,4170.2,4170.1,2.39802402]
[1759162128244,3.0,4170.2,4170.1,2.87763385]
[1759162128668,3.1192,4170.2,4170.1,3.12343385]
[1759162128892,3.1192,4170.2,4170.1,3.59213385]
[1759162130137,3.1192,4170.2,4169.9,2.39809781]
[1759162130286,5.75,4170.1,4170.0,2.39808153]
[1759162130486,5.75,4170.1,4170.0,3.11258153]
[1759162130839,5.75,4170.1,4170.0,0.7145]
[1759162131011,5.75,4170.1,4170.0,3.11258153]
[1759162131328,5.75,4170.1,4170.0,0.2458]
[1759162131486,0.1192,4170.0,4169.9,2.39813904]
[1759162131683,0.1192,4170.0,4169.8,2.64397731]
[1759162132006,5.75,4169.9,4169.8,0.2458]
[1759162132396,5.75,4169.9,4169.8,2.64399655]
[1759162132583,5.75,4169.9,4169.8,0.2458]
[1759162132781,3.0,4169.8,4169.6,2.39826101]
[1759162133015,5.8692,4169.7,4169.6,2.39826101]
[1759162133403,5.8692,4169.7,4169.6,2.64406101]
[1759162134006,5.8692,4169.7,4169.6,3.66387819]
[1759162134416,3.0,4169.7,4169.6,3.66387819]
[1759162134597,3.0,4169.7,4169.6,3.78307819]
[1759162135588,0.1192,4170.3,4169.6,3.78307819]
[1759162135792,0.001,4170.8,4170.7,2.39767904]
[1759162136093,5.8702,4170.8,4170.7,2.39767904]
[1759162136309,0.001,4170.8,4170.7,3.11217904]
[1759162136520,0.001,4170.8,4170.7,3.66317414]
[1759162137119,3.001,4170.8,4170.7,3.66317414]
[1759162137339,0.001,4170.8,4170.7,3.66317414]
[1759162137911,0.001,4170.8,4170.7,3.68715093]
[1759162138118,0.001,4170.8,4170.7,3.78237414]
[1759162138614,0.001,4170.8,4170.7,6.53237414]
[1759162140118,0.001,4170.8,4170.7,14.760589]
[1759162140324,1e-08,4171.3,4171.2,2.39739163]
[1759162140526,1e-08,4171.3,4171.2,6.48355536]
[1759162140844,0.001,4171.8,4171.7,2.39710429]
[1759162141031,0.001,4171.8,4171.7,5.28927533]
[1759162141234,0.001,4171.8,4171.7,5.97980429]
[1759162142243,0.001,4171.8,4171.7,5.86060429]
[1759162142449,0.001,4171.8,4171.7,7.62840424]
[1759162148929,0.001,4171.8,4171.7,4.16490424]
[1759162149127,0.001,4171.8,4171.7,5.26430429]
[1759162149959,0.001,4171.8,4171.7,2.51630429]
[1759162150260,0.001,4171.8,4171.7,5.26430429]
[1759162150964,0.4436,4171.8,4171.7,2.39710429]
[1759162151545,0.001,4171.8,4171.7,2.39710429]
[1759162152473,0.4436,4171.8,4171.7,2.39710429]
[1759162152678,0.6825,4171.8,4171.7,2.39710429]
[1759162153682,0.4436,4171.8,4171.7,2.39710429]
[1759162155500,0.6713,4171.8,4171.7,2.39710429]
[1759162157682,3.1192,4171.7,4171.4,2.39723309]
[1759162157852,0.6848,4171.6,4171.5,2.39721294]
[1759162159762,5.748,4171.7,4171.6,2.39716176]
[1759162160075,5.748,4171.7,4170.8,0.1192]
[1759162160076,0.1192,4171.5,4170.8,0.1192]
[1759162160255,5.748,4171.7,4171.5,2.39721781]
[1759162160459,0.1192,4171.5,4171.4,2.39727669]
[1759162163689,0.5763,4171.5,4171.4,2.39727669]
[1759162163891,0.804,4171.5,4171.4,2.39727669]
[1759162164291,0.1192,4171.5,4171.4,2.39727669]
[1759162164493,0.1192,4171.5,4171.4,2.63317669]
[1759162165088,0.1192,4171.5,4171.4,2.39727669]
[1759162165558,10.0992,4171.5,4171.4,2.39727669]
[1759162165756,10.0992,4171.5,4171.4,3.09637669]
[1759162165957,10.0992,4171.5,4171.4,2.63317669]
[1759162166579,9.98,4171.5,4171.4,3.09637669]
[1759162166778,9.98,4171.5,4171.4,6.39374933]
[1759162167089,0.001,4171.8,4171.7,2.39710429]
[1759162167695,0.001,4171.8,4171.7,3.21540429]
[1759162167871,0.001,4171.8,4171.7,5.16894899]
[1759162172094,0.001,4171.8,4171.7,7.91694899]
[1759162172393,0.001,4171.8,4171.7,7.79774899]
[1759162172688,0.001,4171.8,4171.7,7.91694899]
[1759162174706,0.001,4171.8,4171.7,8.01307984]
[1759162175513,1e-08,4172.5,4172.4,2.39670213]
[1759162175682,1e-08,4172.5,4172.4,13.6125872]
[1759162175879,1e-08,4172.5,4172.4,14.3116872]
[1759162176096,1e-08,4172.5,4172.4,14.78953775]
[1759162176409,0.001,4172.7,4172.6,2.39658725]
[1759162176726,0.001,4172.7,4172.6,5.14458725]
[1759162176911,0.001,4172.7,4172.6,7.57191091]
[1759162177582,0.4571,4174.6,4174.0,2.39578342]
[1759162177783,0.4571,4174.6,4174.0,2.41974125]
[1759162178881,0.4571,4174.6,4174.0,2.39578342]
[1759162183986,0.4298,4174.8,4174.0,2.39578342]
[1759162184716,0.4298,4174.8,4174.0,2.63838342]
[1759162184916,0.4298,4174.8,4174.0,3.45989778]
[1759162185119,0.2469,4175.2,4174.0,3.89279778]
[1759162185415,1.662,4175.5,4174.0,3.89279778]
[1759162185416,1.80291098,4175.5,4174.0,3.89279778]
[1759162185618,0.4298,4174.8,4174.0,4.01199778]
[1759162186153,0.6767,4175.3,4174.0,4.03595561]
[1759162186308,0.6767,4175.3,4174.0,4.01199778]
[1759162188117,0.2469,4175.3,4174.0,4.01199778]
[1759162188322,0.4298,4174.9,4174.0,4.01199778]
[1759162189333,0.4298,4175.2,4174.0,4.03595561]
[1759162189522,0.001,4174.6,4174.0,4.03595561]
[1759162192129,0.001,4174.6,4174.0,4.01199778]
[1759162192336,0.001,4174.6,4174.0,13.73070329]
[1759162193009,0.001,4174.6,4174.0,13.29780329]
[1759162193208,0.001,4174.6,4174.0,13.73070329]
[1759162193406,0.4298,4174.4,4174.0,6.08249778]
[1759162193606,0.4308,4174.1,4174.0,6.08249778]
[1759162194024,0.4308,4174.1,4174.0,3.33649778]
[1759162194236,0.6777,4174.1,4174.0,5.96329778]
[1759162194536,0.001,4174.1,4174.0,5.96329778]
[1759162195209,0.4308,4174.1,4174.0,5.96329778]
[1759162198857,0.001,4174.1,4174.0,5.96329778]
[1759162199952,0.001,4174.1,4174.0,13.17860329]
[1759162200460,0.001,4174.1,4174.0,13.61150329]
[1759162201016,0.001,4174.1,4174.0,10.86550329]
[1759162201216,0.001,4174.1,4174.0,13.61150329]
[1759162203343,0.001,4174.1,4174.0,10.54021987]
[1759162203557,0.001,4174.1,4174.0,13.61150329]
[1759162204117,0.001,4174.1,4174.0,13.05520329]
[1759162204646,0.001,4174.1,4174.0,13.29780329]
[1759162205046,0.001,4174.1,4174.0,13.73070329]
[1759162205646,0.001,4174.1,4174.0,13.29780329]
[1759162205871,0.001,4174.1,4174.0,13.73070329]
[1759162207947,0.001,4176.4,4174.0,13.61150329]
[1759162208251,0.001,4176.4,4175.8,2.3947507]
[1759162208252,0.001,4176.0,4175.8,2.3947507]
[1759162208555,0.001,4176.0,4175.8,5.1447507]
[1759162209172,0.001,4176.0,4175.8,2.3947507]
[1759162209371,0.001,4176.0,4175.8,5.1457507]
[1759162209568,0.001,4176.0,4175.8,7.37381768]
[1759162209950,0.001,4176.0,4175.8,4.62281768]
[1759162210147,0.001,4176.0,4175.8,7.37381768]
[1759162210379,0.001,4176.0,4175.8,12.11845621]
[1759162210960,0.001,4176.0,4175.8,12.56335621]
[1759162211190,0.001,4176.0,4175.8,12.92285621]
[1759162212177,0.001,4176.0,4175.8,13.40698641]
[1759162218029,0.2323,4177.2,4175.8,13.40698641]
[1759162218030,0.2323,4177.7,4177.2,2.39394809]
[1759162218195,7.2123,4177.7,4177.6,2.39371888]
[1759162218399,9.98,4177.7,4177.6,5.14171888]
[1759162218615,6.98,4177.7,4177.6,2.39371888]
[1759162218810,9.98,4177.7,4177.6,2.39371888]
[1759162219133,10.6404,4177.7,4177.6,2.39371888]
[1759162219285,10.6404,4177.7,4177.1,2.39396745]
[1759162219286,3.0,4177.6,4177.3,2.39385316]
[1759162219619,6.98,4177.7,4177.4,2.39383348]
[1759162219789,0.6604,4177.5,4177.4,2.39383348]
[1759162221183,3.0,4177.4,4177.3,2.39388018]
[1759162221403,3.6604,4177.4,4177.3,2.39388018]
[1759162221605,3.6604,4177.4,4177.2,2.39392899]
[1759162221785,3.0,4177.4,4177.3,2.39389079]
[1759162222412,3.6604,4177.4,4177.3,2.39389079]
[1759162222610,10.6404,4177.4,4176.9,2.39411488]
[1759162222924,0.6604,4177.3,4176.9,2.39411488]
[1759162223216,9.98,4177.4,4177.2,2.39394291]
[1759162223413,9.98,4177.4,4177.1,2.39400541]
[1759162223617,9.98,4177.4,4176.8,2.765]
[1759162223913,0.6604,4177.3,4177.2,2.39394809]
[1759162225387,9.98,4177.4,4177.2,2.39394809]
[1759162225388,9.98,4177.4,4177.3,2.39389079]
[1759162226524,10.4081,4177.4,4177.3,5.15889079]
[1759162227319,9.98,4177.4,4177.3,5.15889079]
[1759162228106,9.98,4177.4,4177.3,5.27809079]
[1759162229092,6.98,4177.4,4177.3,6.74256523]
[1759162229491,6.98,4177.4,4177.3,7.43246523]
[1759162229729,6.981,4177.5,4177.4,2.39383348]
[1759162229936,0.86408966,4177.5,4177.4,10.05643899]
[1759162230229,0.001,4178.0,4177.9,2.39354699]
[1759162230540,0.001,4178.0,4177.9,5.18248245]
[1759162230738,0.001,4178.0,4177.9,12.1312525]
[1759162231393,0.001,4178.0,4177.9,14.33026997]
[1759162231718,0.001,4178.0,4177.9,14.44946997]
[1759162233325,0.001,4178.0,4177.9,10.99456997]
[1759162233623,0.001,4178.0,4177.9,11.48114216]
[1759162233922,0.001,4178.0,4177.9,14.24614216]
[1759162234221,0.001,4178.0,4177.9,14.93604216]
[1759162236797,0.001,4178.0,4177.9,21.90874767]
[1759162237034,0.001,4178.0,4177.9,14.93604216]
[1759162237235,0.001,4178.0,4177.9,21.90874767]
[1759162237618,0.001,4178.0,4177.9,14.93604216]
[1759162238697,0.001,4178.0,4177.9,21.90874767]
[1759162247943,0.001,4178.0,4177.9,14.24014216]
[1759162248239,0.001,4178.5,4177.9,14.24014216]
[1759162248443,0.001,4178.5,4178.4,9.48516608]
[1759162248847,0.001,4178.5,4178.4,12.24416608]
[1759162252047,0.001,4178.5,4178.4,5.27146057]
[1759162252426,0.001,4178.5,4178.4,5.69916057]
[1759162252631,0.001,4178.5,4178.4,5.27146057]
[1759162252826,0.001,4178.5,4178.4,7.475251]
[1759162253033,0.001,4178.5,4178.4,7.473251]
[1759162254443,0.001,4178.5,4178.4,12.90524181]
[1759162254641,0.001,4178.5,4178.4,15.66224181]
[1759162256357,0.001,4178.5,4178.4,7.473251]
[1759162256558,0.001,4178.5,4178.4,5.26946057]
[1759162256751,0.001,4178.5,4178.4,2.51246057]
[1759162257261,0.001,4178.5,4178.4,5.26646057]
[1759162258761,0.001,4178.5,4178.4,14.11685138]
[1759162259737,0.001,4178.5,4178.4,0.1192]
[1759162259938,0.6798,4178.5,4177.9,1.575]
[1759162260264,0.6788,4178.4,4178.3,0.002]
[1759162262746,0.6788,4178.4,4178.3,2.39531785]
[1759162263179,0.6788,4178.4,4178.3,5.17131785]
[1759162264771,0.001,4178.5,4178.4,2.39326057]
[1759162264967,0.227,4178.5,4178.4,2.41719317]
[1759162265278,0.227,4178.5,4178.3,0.002]
[1759162265279,0.6798,4178.5,4178.3,0.002]
[1759162265444,0.001,4178.5,4178.4,2.776]
[1759162265643,0.6798,4178.5,4178.4,5.16926057]
[1759162266349,0.001,4178.5,4178.4,5.16926057]
[1759162266744,0.227,4178.5,4178.4,5.16926057]
[1759162266980,0.6798,4178.5,4178.4,2.776]
[1759162267177,0.6798,4178.5,4178.4,5.16926057]
[1759162268278,0.6798,4178.5,4178.4,5.16726057]
[1759162268452,0.6798,4178.5,4178.4,2.774]
[1759162269348,0.6798,4178.5,4178.4,5.16726057]
[1759162270686,0.001,4178.5,4178.4,5.16726057]
[1759162271179,0.2325,4178.5,4178.4,2.771]
[1759162271361,0.6711,4178.5,4178.4,5.16426057]
[1759162271558,0.2325,4178.5,4178.4,5.16426057]
[1759162271887,0.001,4178.5,4178.4,5.16426057]
[1759162273373,0.001,4178.5,4178.4,2.771]
[1759162273555,0.001,4178.5,4178.4,5.16426057]
[1759162275202,0.001,4178.5,4178.4,5.16326057]
[1759162276992,0.001,4178.5,4178.4,2.77]
[1759162277366,0.001,4178.5,4178.4,5.16326057]
[1759162277998,0.001,4178.5,4178.3,2.39526706]
[1759162278200,0.6748,4178.5,4178.4,2.768]
[1759162278580,0.001,4178.5,4178.4,5.16126057]
[1759162278779,0.001,4178.5,4178.4,2.768]
[1759162278965,7.2194,4178.5,4178.4,2.767]
[1759162279305,7.6548,4178.5,4178.4,2.767]
[1759162279482,7.6548,4178.5,4178.4,5.16026057]
[1759162279682,7.2194,4178.5,4178.4,5.16026057]
[1759162279881,6.981,4178.5,4178.4,5.16026057]
[1759162280149,6.981,4178.5,4178.4,2.767]
[1759162281578,6.981,4178.5,4178.4,2.766]
[1759162281778,6.981,4178.5,4178.3,2.39529739]
[1759162281981,6.981,4178.5,4178.4,2.765]
[1759162282163,6.981,4178.5,4178.3,0.002]
[1759162282368,6.981,4178.5,4178.3,2.767]
[1759162282813,6.981,4178.5,4178.4,2.39326057]
[1759162283176,6.981,4178.5,4178.4,2.63136057]
[1759162283497,6.981,4178.5,4178.4,3.21936057]
[1759162283701,6.981,4178.5,4178.4,2.51246057]
[1759162283943,6.981,4178.5,4178.4,5.27746057]
[1759162284424,6.981,4178.5,4178.4,2.8842]
[1759162284630,6.981,4178.5,4178.4,5.27746057]
[1759162285034,6.981,4178.5,4178.4,2.51246057]
[1759162285222,6.981,4178.5,4178.4,5.27746057]
[1759162287437,6.981,4178.5,4178.4,5.98436057]
[1759162288629,6.981,4178.5,4178.4,5.74626057]
[1759162288814,6.981,4178.5,4178.4,5.27746057]
[1759162290907,6.981,4178.5,4178.4,5.98436057]
[1759162291246,6.981,4178.5,4178.4,5.27746057]
[1759162291400,6.981,4178.5,4178.3,0.002]
[1759162291605,6.981,4178.5,4178.4,2.39326057]
[1759162292009,6.981,4178.5,4178.4,2.761]
[1759162292338,6.981,4178.5,4178.4,5.15726057]
[1759162292845,6.981,4178.5,4178.4,5.62606057]
[1759162293937,6.981,4178.5,4178.4,5.86416057]
[1759162295008,6.981,4178.5,4178.4,6.69011047]
[1759162295434,6.981,4178.5,4178.4,14.87910128]
[1759162298141,0.001,4178.9,4178.8,2.39303149]
[1759162298351,0.001,4178.9,4178.8,13.36995261]
[1759162298522,0.001,4178.9,4178.8,15.69991826]
[1759162300970,0.001,4178.9,4178.8,4.74692745]
[1759162301173,0.001,4178.9,4178.8,5.86193149]
[1759162301339,0.001,4178.9,4178.8,5.98013149]
[1759162301539,0.001,4178.9,4178.8,14.1691223]
[1759162303537,0.001,4178.9,4178.8,5.98013149]
[1759162303934,0.001,4178.9,4178.8,3.21913149]
[1759162304167,0.001,4178.9,4178.8,7.38318473]
[1759162304375,0.001,4178.9,4178.8,15.54824523]
[1759162304874,0.001,4178.9,4178.8,4.59925442]
[1759162305053,0.001,4178.9,4178.8,5.97813149]
[1759162307078,0.001,4178.9,4178.8,2.39303149]
[1759162307240,0.2309,4178.9,4178.8,5.15203149]
[1759162307446,0.001,4178.9,4178.8,5.15203149]
[1759162308247,0.001,4178.9,4178.8,2.39303149]
[1759162308546,0.001,4178.9,4178.8,5.63164515]
[1759162315048,0.001,4178.9,4178.8,2.87164515]
[1759162315250,0.001,4178.9,4178.8,5.62764515]
[1759162316089,0.6677,4178.9,4178.8,2.39303149]
[1759162316387,0.6677,4178.9,4178.8,5.14903149]
[1759162317052,0.6677,4178.9,4178.8,5.26823149]
[1759162317972,0.001,4178.9,4178.8,5.26823149]
[1759162318580,0.2309,4178.9,4178.8,5.26823149]
[1759162319975,0.001,4178.9,4178.8,5.26823149]
[1759162320302,0.001,4178.9,4178.8,5.91516852]
[1759162320454,0.001,4178.9,4178.8,6.72116852]
[1759162322676,0.001,4178.9,4178.8,6.81713148]
[1759162324670,3.0,4180.4,4179.7,2.3925162]
[1759162324871,3.0,4180.4,4178.8,4.30489999]
[1759162324872,3.0,4180.4,4179.8,2.754]
[1759162325302,3.0,4180.4,4179.2,0.4563]
[1759162325507,3.0,4180.4,4179.3,2.753]
[1759162325858,3.0,4180.1,4178.8,0.09596296]
[1759162326082,3.0,4180.1,4178.9,2.753]
[1759162326283,3.0,4180.1,4178.9,3.07393]
[1759162326484,3.0,4180.4,4178.9,3.07393]
[1759162326691,0.038,4180.3,4179.5,2.3926169]
[1759162326870,0.038,4180.3,4179.6,2.753]
[1759162327203,6.95828382,4179.8,4178.7,2.39304421]
[1759162327361,3.038,4179.7,4178.8,5.14600736]
[1759162327556,0.021,4179.6,4178.8,2.39300736]
[1759162327802,3.0,4179.4,4178.7,0.02393088]
[1759162327983,3.0,4179.4,4178.8,2.758]
[1759162328186,5.6717,4179.3,4178.8,2.758]
[1759162328403,0.021,4179.2,4178.8,2.758]
[1759162328661,5.6507,4179.3,4178.8,2.758]
[1759162328891,5.6717,4179.3,4178.8,2.758]
[1759162329090,5.6507,4179.3,4178.8,2.758]
[1759162329391,0.021,4179.2,4178.8,5.15102084]
[1759162329576,5.6507,4179.3,4178.8,5.15102084]
[1759162329782,5.6717,4179.3,4178.8,2.758]
[1759162330286,0.021,4179.2,4178.6,2.39313269]
[1759162330470,0.021,4179.2,4178.7,2.759]
[1759162330889,0.021,4179.2,4178.7,5.15207482]
[1759162331188,0.021,4179.2,4178.7,2.759]
[1759162332804,5.6507,4179.3,4178.7,5.15207818]
[1759162334091,5.6507,4179.3,4178.8,2.39301783]
[1759162334267,5.6507,4179.3,4178.9,2.39296876]
[1759162334468,5.6507,4179.3,4178.8,2.39301549]
[1759162334667,5.6507,4179.3,4178.7,5.27126506]
[1759162334878,5.6507,4179.3,4178.8,2.39303104]
[1759162335088,5.6507,4179.3,4178.7,2.8782]
[1759162335404,5.6507,4179.3,4178.7,5.27127912]
[1759162336125,5.6507,4179.3,4178.8,2.39303135]
[1759162336403,5.6507,4179.3,4178.8,2.757]
[1759162336599,5.6507,4179.3,4178.8,5.15002778]
[1759162337801,5.6507,4179.3,4178.8,2.757]
[1759162338171,5.6507,4179.3,4178.8,5.15002549]
[1759162338499,5.6507,4179.3,4178.8,2.757]
[1759162338711,5.6507,4179.3,4178.5,0.4462]
[1759162338712,6.95828382,4179.0,4178.5,0.002]
[1759162339081,6.95828382,4179.0,4178.6,2.755]
[1759162339415,0.1192,4179.1,4178.6,2.755]
[1759162339711,0.1192,4179.1,4178.6,5.14813419]
[1759162340597,0.1192,4179.1,4178.7,2.39305206]
[1759162340899,0.1192,4179.1,4178.7,3.10748294]
[1759162341102,0.1192,4179.1,4178.8,0.4442]
[1759162341398,0.1192,4179.1,4178.7,0.02393088]
[1759162342308,0.1192,4179.1,4178.7,0.46813088]
[1759162343499,0.1192,4179.1,4178.8,2.39302585]
[1759162343798,0.1192,4179.1,4178.8,0.4442]
[1759162344485,0.1192,4179.1,4178.8,2.753]
[1759162345186,0.1192,4179.1,4178.8,2.77693031]
[1759162345771,0.1192,4179.1,4178.8,2.753]
[1759162347270,0.1192,4179.1,4178.8,2.755]
[1759162347467,5.6507,4179.3,4179.2,2.39280245]
[1759162347672,5.6507,4179.3,4179.2,5.83530245]
[1759162348968,0.1192,4179.8,4179.3,2.39274519]
[1759162349172,0.1192,4179.8,4179.2,3.4425]
[1759162349173,0.1192,4179.8,4179.6,2.39257039]
[1759162349410,0.001,4180.4,4179.7,2.41644136]
[1759162349711,0.1192,4180.3,4179.8,2.39244727]
[1759162349913,0.1192,4180.3,4179.9,0.46812401]
[1759162350403,0.001,4180.4,4180.0,0.4442]
[1759162350608,0.001,4180.4,4180.1,0.4442]
[1759162350905,3.001,4180.4,4180.1,0.4442]
[1759162351911,3.001,4180.4,4179.8,3.3154]
[1759162352488,0.001,4180.4,4179.9,0.4442]
[1759162352677,0.001,4180.4,4180.0,3.4425]
[1759162352878,0.001,4180.4,4180.0,3.4415]
[1759162353076,0.001,4180.4,4180.1,0.4442]
[1759162353506,0.001,4180.4,4180.2,0.4442]
[1759162353809,0.001,4180.4,4180.2,0.82968405]
[1759162354013,0.001,4180.4,4180.3,0.4442]
[1759162354580,0.001,4180.4,4180.3,3.1952]
[1759162356120,0.001,4180.4,4180.3,2.751]
[1759162357011,0.001,4180.4,4180.3,5.83367281]
[1759162357311,0.001,4180.4,4180.3,6.41943238]
[1759162359276,0.001,4180.4,4180.3,1.27625957]
[1759162359483,0.001,4180.4,4180.3,4.03525957]
[1759162359810,0.001,4180.4,4180.3,3.78895957]
[1759162360198,0.001,4180.4,4180.3,0.58575957]
[1759162360401,0.001,4180.4,4180.2,2.759]
[1759162360593,0.001,4180.4,4180.3,0.02392172]
[1759162361895,0.001,4180.4,4180.2,2.759]
[1759162362420,0.001,4180.4,4180.3,0.68482172]
[1759162362581,0.001,4180.4,4180.3,3.07699453]